bitfinex/quotes_BTCUSD_20250211
["timestamp","ask_amount","ask_price","bid_price","bid_amount"]
[1739267456951,0.50464822,98185.0,98184.0,0.00022386]
[1739267457384,0.152793,98172.0,98171.0,0.00347993]
[1739267457589,0.25529665,98172.0,98171.0,0.00347993]
[1739267458563,0.25529665,98172.0,98171.0,0.00361273]
[1739267459450,0.01025477,98172.0,98171.0,0.00361273]
[1739267459675,0.007,98172.0,98171.0,0.08431273]
[1739267460084,0.019,98172.0,98171.0,0.08431273]
[1739267461170,0.171793,98172.0,98171.0,0.08431273]
[1739267461444,0.171793,98172.0,98171.0,0.00361273]
[1739267461639,0.19074285,98172.0,98171.0,0.00361273]
[1739267461849,0.2932465,98172.0,98171.0,0.00361273]
[1739267463200,0.2812465,98172.0,98171.0,0.00361273]
[1739267463414,0.4242465,98172.0,98171.0,0.00361273]
[1739267463606,0.5016465,98172.0,98171.0,0.00361273]
[1739267463834,0.5086465,98172.0,98171.0,0.00361273]
[1739267464193,0.63938178,98172.0,98171.0,0.00361273]
[1739267464588,0.64638178,98172.0,98171.0,0.00361273]
[1739267464750,0.66038178,98172.0,98171.0,0.00361273]
[1739267465147,0.64638178,98172.0,98171.0,0.00361273]
[1739267465605,0.66038178,98172.0,98171.0,0.00361273]
[1739267466150,0.65338178,98172.0,98171.0,0.00361273]
[1739267466509,0.64638178,98172.0,98171.0,0.00361273]
[1739267466839,0.63938178,98172.0,98171.0,0.00361273]
[1739267467081,0.64638178,98172.0,98171.0,0.00361273]
[1739267467839,0.63938178,98172.0,98171.0,0.00361273]
[1739267468042,0.66038178,98172.0,98171.0,0.00361273]
[1739267469332,0.65338178,98172.0,98171.0,0.00361273]
[1739267469708,0.66038178,98172.0,98171.0,0.00361273]
[1739267472470,0.15,98169.0,98150.0,0.152826]
[1739267472812,0.15,98169.0,98155.0,0.04414714]
[1739267472813,0.152816,98157.0,98155.0,0.04414714]
[1739267473177,0.152814,98159.0,98155.0,0.00030504]
[1739267473380,0.10250365,98159.0,98155.0,0.00030504]
[1739267473786,0.152816,98157.0,98155.0,0.00030504]
[1739267474254,0.152817,98156.0,98155.0,0.00030504]
[1739267474380,0.005,98157.0,98155.0,0.00030504]
[1739267474992,0.152817,98156.0,98155.0,0.00030504]
[1739267475199,0.17176685,98156.0,98155.0,0.00030504]
[1739267475402,0.01894985,98156.0,98155.0,0.00030504]
[1739267476454,0.02394985,98156.0,98155.0,0.00030504]
[1739267476852,0.17676685,98156.0,98155.0,0.00030504]
[1739267477077,0.02394985,98156.0,98155.0,0.00030504]
[1739267477348,0.02894985,98156.0,98155.0,0.00030504]
[1739267484215,0.18176685,98156.0,98155.0,0.00030504]
[1739267484450,0.02894985,98156.0,98155.0,0.00030504]
[1739267486592,0.05936151,98156.0,98155.0,0.00030504]
[1739267487681,0.00068681,98155.0,98154.0,0.00022386]
[1739267489158,0.00468681,98155.0,98154.0,0.00022386]
[1739267489577,0.05404832,98155.0,98154.0,0.00022386]
[1739267490044,0.05804832,98155.0,98154.0,0.00022386]
[1739267490695,0.05404832,98155.0,98154.0,0.00022386]
[1739267490916,0.05804832,98155.0,98154.0,0.00022386]
[1739267491538,0.05404832,98155.0,98154.0,0.00022386]
[1739267491927,0.05004832,98155.0,98154.0,0.00022386]
[1739267492887,0.05804832,98155.0,98154.0,0.00022386]
[1739267493544,0.05404832,98155.0,98154.0,0.00022386]
[1739267493703,0.05804832,98155.0,98154.0,0.00022386]
[1739267494107,0.05135483,98155.0,98154.0,0.00022386]
[1739267494509,0.05535483,98155.0,98154.0,0.00022386]
[1739267494714,0.05237235,98155.0,98154.0,0.00022386]
[1739267495345,0.05037873,98155.0,98154.0,0.00022386]
[1739267495740,0.04637873,98155.0,98154.0,0.00022386]
[1739267496149,0.04237873,98155.0,98154.0,0.00022386]
[1739267496389,0.04637873,98155.0,98154.0,0.00022386]
[1739267496728,0.05037873,98155.0,98154.0,0.00022386]
[1739267496880,0.04637873,98155.0,98154.0,0.00022386]
[1739267497081,0.05037873,98155.0,98154.0,0.00022386]
[1739267497500,0.04637873,98155.0,98154.0,0.00022386]
[1739267497692,0.04237873,98155.0,98154.0,0.00022386]
[1739267497902,0.05688353,98155.0,98154.0,0.02869365]
[1739267498275,0.05688353,98155.0,98154.0,0.00022386]
[1739267499023,0.06188353,98155.0,98154.0,0.00022386]
[1739267499409,0.05688353,98155.0,98154.0,0.00022386]
[1739267499785,0.06199013,98155.0,98154.0,0.00022386]
[1739267500309,0.05699013,98155.0,98154.0,0.00022386]
[1739267500492,0.06199013,98155.0,98154.0,0.00022386]
[1739267500693,0.05699013,98155.0,98154.0,0.00022386]
[1739267501136,0.05199013,98155.0,98154.0,0.00022386]
[1739267501360,0.05699013,98155.0,98154.0,0.00022386]
[1739267502104,0.06199013,98155.0,98154.0,0.00022386]
[1739267503997,0.07474006,98155.0,98154.0,0.00022386]
[1739267504148,0.07474006,98155.0,98154.0,0.04397605]
[1739267504962,0.07474006,98155.0,98154.0,0.00022386]
[1739267505576,0.06199013,98155.0,98154.0,0.00022386]
[1739267510163,0.06199013,98155.0,98154.0,0.15304486]
[1739267510414,0.06199013,98155.0,98154.0,0.23274486]
[1739267511103,0.05199013,98155.0,98154.0,0.23274486]
[1739267512400,0.05999013,98155.0,98154.0,0.23274486]
[1739267512584,0.05999013,98155.0,98154.0,0.29677295]
[1739267512933,0.08794425,98155.0,98154.0,0.29677295]
[1739267514327,0.07519482,98155.0,98154.0,0.29677295]
[1739267514791,0.07519482,98155.0,98154.0,0.23274486]
[1739267521120,0.22801382,98155.0,98154.0,0.00022386]
[1739267521572,0.07519482,98155.0,98154.0,0.00022386]
[1739267521787,0.22801382,98155.0,98154.0,0.00022386]
[1739267522200,0.152823,98153.0,98146.0,0.152833]
[1739267522416,0.22401382,98155.0,98148.0,0.15283]
[1739267522604,0.152821,98154.0,98147.0,0.05048907]
[1739267522820,0.03041004,98149.0,98147.0,0.05048907]
[1739267523246,0.03041004,98149.0,98147.0,0.20332007]
[1739267523450,0.03041004,98149.0,98148.0,0.07129608]
[1739267523651,0.03041004,98149.0,98148.0,0.15283]
[1739267524151,0.02470949,98148.0,98147.0,0.05048907]
[1739267525158,0.02470949,98148.0,98141.0,0.0817]
[1739267525364,0.02470949,98148.0,98109.0,0.11414286]
[1739267525365,0.10250365,98147.0,98128.0,0.0496]
[1739267525572,0.152844,98139.0,98138.0,0.02000527]
[1739267525766,0.203781,98145.0,98129.0,0.0817]
[1739267525967,0.152847,98137.0,98130.0,0.16599341]
[1739267526404,0.18335336,98140.0,98130.0,0.01313541]
[1739267526405,0.152849,98136.0,98130.0,0.01313541]
[1739267526616,0.15285,98135.0,98132.0,0.01998692]
[1739267527031,0.203794,98138.0,98132.0,0.01998692]
[1739267527241,0.02470949,98139.0,98132.0,0.01998692]
[1739267527242,0.152853,98134.0,98132.0,0.01998692]
[1739267527449,0.152853,98133.0,98132.0,0.01998692]
[1739267527683,0.152851,98135.0,98132.0,0.01998692]
[1739267527891,0.152853,98134.0,98132.0,0.01998692]
[1739267528095,0.17756249,98134.0,98132.0,0.01998692]
[1739267528300,0.152853,98133.0,98132.0,0.01998692]
[1739267528938,0.15286,98129.0,98128.0,5.412e-05]
[1739267529358,0.25536365,98129.0,98128.0,5.412e-05]
[1739267530242,0.28107314,98129.0,98128.0,5.412e-05]
[1739267530450,0.69956207,98129.0,98128.0,5.412e-05]
[1739267530656,0.77646207,98129.0,98128.0,5.412e-05]
[1739267531066,0.77946207,98129.0,98128.0,5.412e-05]
[1739267531501,0.80146207,98129.0,98128.0,5.412e-05]
[1739267531909,0.80346207,98129.0,98128.0,5.412e-05]
[1739267532324,0.173,98128.0,98122.0,0.1873683]
[1739267532522,0.64860207,98129.0,98122.0,0.1873683]
[1739267532523,0.302869,98123.0,98122.0,0.1873683]
[1739267532767,0.40537265,98123.0,98122.0,0.1873683]
[1739267533526,0.44775138,98123.0,98122.0,0.1873683]
[1739267533742,0.44775138,98123.0,98122.0,0.20733372]
[1739267534109,0.68588666,98123.0,98122.0,0.1873683]
[1739267534317,0.71059615,98123.0,98122.0,0.1873683]
[1739267534676,0.71259615,98123.0,98122.0,0.1873683]
[1739267535090,0.71259615,98123.0,98122.0,0.18759216]
[1739267537245,0.71259615,98123.0,98122.0,0.16463087]
[1739267542809,0.74278579,98123.0,98122.0,0.16463087]
[1739267543016,0.75478579,98123.0,98122.0,0.16463087]
[1739267543267,0.76178579,98123.0,98122.0,0.16463087]
[1739267543494,0.75478579,98123.0,98122.0,0.16463087]
[1739267543700,0.74078579,98123.0,98122.0,0.16463087]
[1739267543918,0.76178579,98123.0,98122.0,0.16463087]
[1739267544123,0.75478579,98123.0,98122.0,0.16463087]
[1739267544503,0.76178579,98123.0,98122.0,0.16463087]
[1739267544681,0.75478579,98123.0,98122.0,0.16463087]
[1739267545317,0.74078579,98123.0,98122.0,0.16463087]
[1739267545519,0.72459615,98123.0,98122.0,0.16463087]
[1739267546049,0.71759615,98123.0,98122.0,0.16463087]
[1739267546355,0.72459615,98123.0,98122.0,0.16463087]
[1739267546744,0.71759615,98123.0,98122.0,0.16463087]
[1739267546994,0.71059615,98123.0,98122.0,0.16463087]
[1739267547203,0.72459615,98123.0,98122.0,0.16463087]
[1739267547420,0.73159615,98123.0,98122.0,0.16463087]
[1739267547599,0.72459615,98123.0,98122.0,0.16463087]
[1739267548242,0.72470275,98123.0,98122.0,0.16463087]
[1739267548421,0.77840275,98123.0,98122.0,0.16463087]
[1739267548624,0.85420275,98123.0,98122.0,0.16463087]
[1739267549181,0.84020275,98123.0,98122.0,0.16463087]
[1739267549770,0.83320275,98123.0,98122.0,0.11950123]
[1739267549974,0.84720275,98123.0,98122.0,0.11650123]
[1739267550178,0.85420275,98123.0,98122.0,0.11650123]
[1739267552303,0.85420275,98123.0,98122.0,0.08443728]
[1739267552518,0.9567064,98123.0,98122.0,0.02160728]
[1739267552661,0.86420275,98123.0,98122.0,0.02160728]
[1739267552862,0.46077,98122.0,98121.0,0.01092873]
[1739267553069,0.56327365,98122.0,98121.0,0.01092873]
[1739267553267,0.302886,98112.0,98111.0,0.0002]
[1739267553480,0.53028965,98112.0,98111.0,0.0002]
[1739267553683,0.55328965,98112.0,98111.0,0.0002]
[1739267554473,0.6557933,98112.0,98111.0,0.0002]
[1739267554678,0.6557933,98112.0,98109.0,0.00217212]
[1739267554679,0.302889,98110.0,98109.0,0.00217212]
[1739267554884,0.42839265,98110.0,98109.0,0.00217212]
[1739267555514,0.42839265,98110.0,98077.0,0.08137524]
[1739267555515,0.30292,98090.0,98077.0,0.08137524]
[1739267555719,0.64355893,98090.0,98077.0,0.08137524]
[1739267556130,0.64355893,98090.0,98072.0,0.00022386]
[1739267556653,0.68593766,98090.0,98072.0,0.00022386]
[1739267556912,0.80051778,98090.0,98072.0,0.00022386]
[1739267557106,0.72972362,98090.0,98072.0,0.00022386]
[1739267557324,0.72272362,98090.0,98072.0,0.00022386]
[1739267557508,0.72972362,98090.0,98072.0,0.00022386]
[1739267558157,0.71772362,98090.0,98072.0,0.00022386]
[1739267558361,0.72818158,98090.0,98072.0,0.00022386]
[1739267558568,0.74218158,98090.0,98072.0,0.00022386]
[1739267559175,0.75002158,98090.0,98072.0,0.00022386]
[1739267560792,0.74218158,98090.0,98072.0,0.00022386]
[1739267560986,0.75006158,98090.0,98079.0,0.0783]
[1739267561497,0.73485689,98090.0,98079.0,0.0783]
[1739267561859,0.70397689,98090.0,98079.0,0.0783]
[1739267562449,0.66159816,98090.0,98079.0,0.0783]
[1739267564802,0.68048669,98090.0,98079.0,0.0783]
[1739267567369,0.67348669,98090.0,98079.0,0.0783]
[1739267568068,0.66648669,98090.0,98079.0,0.0783]
[1739267568272,0.66159816,98090.0,98079.0,0.0783]
[1739267569915,0.50867816,98090.0,98089.0,0.07812386]
[1739267570141,0.25617451,98090.0,98089.0,0.13105863]
[1739267570576,0.25617451,98090.0,98089.0,0.12322386]
[1739267571174,0.24217451,98090.0,98089.0,0.12322386]
[1739267571374,0.24217451,98090.0,98089.0,0.14395196]
[1739267571609,0.25517451,98090.0,98089.0,0.14395196]
[1739267572184,0.24471655,98090.0,98089.0,0.14395196]
[1739267572994,0.23771655,98090.0,98089.0,0.14395196]
[1739267573557,0.24471655,98090.0,98089.0,0.14395196]
[1739267573881,0.24471655,98090.0,98089.0,0.17366274]
[1739267574083,0.24471655,98090.0,98089.0,0.14395196]
[1739267574581,0.24471655,98090.0,98089.0,0.12322386]
[1739267575093,0.02958127,98090.0,98089.0,0.12322386]
[1739267576140,0.02958127,98090.0,98089.0,0.27614586]
[1739267576341,0.02958127,98090.0,98089.0,0.30583931]
[1739267577152,0.00958127,98090.0,98089.0,0.30583931]
[1739267577360,0.01958127,98090.0,98089.0,0.30583931]
[1739267577569,0.02458127,98090.0,98089.0,0.30583931]
[1739267578389,0.01458127,98090.0,98089.0,0.30583931]
[1739267578798,0.02058127,98090.0,98089.0,0.30583931]
[1739267580594,0.00958127,98090.0,98089.0,0.30583931]
[1739267580746,0.01458127,98090.0,98089.0,0.30583931]
[1739267582730,0.01158127,98090.0,98089.0,0.30583931]
[1739267583145,0.01258127,98090.0,98089.0,0.30583931]
[1739267583616,0.01358127,98090.0,98089.0,0.30583931]
[1739267583810,0.00507647,98090.0,98089.0,0.30583931]
[1739267584052,0.00107647,98090.0,98089.0,0.30583931]
[1739267584258,7.647e-05,98090.0,98089.0,0.30583931]
[1739267584431,0.00107647,98090.0,98089.0,0.30583931]
[1739267584870,0.00207647,98090.0,98089.0,0.30883931]
[1739267587807,0.00150762,98090.0,98089.0,0.30883931]
[1739267597049,0.21513528,98122.0,98101.0,0.152903]
[1739267597259,0.09035005,98146.0,98101.0,0.276303]
[1739267597260,0.152863,98127.0,98101.0,0.276303]
[1739267597675,0.0492,98141.0,98101.0,0.37880665]
[1739267597889,0.152847,98138.0,98101.0,0.37880665]
[1739267598107,0.15,98138.0,98101.0,0.37880665]
[1739267599116,0.09035005,98146.0,98101.0,0.52880665]
[1739267599373,0.01022744,98133.0,98101.0,0.52880665]
[1739267599693,0.0011067,98102.0,98101.0,0.56080665]
[1739267600025,0.0001067,98102.0,98101.0,0.64889734]
[1739267600224,0.0001067,98102.0,98101.0,0.65289734]
[1739267600430,0.0011067,98102.0,98101.0,0.68416856]
[1739267601028,0.0001067,98102.0,98101.0,0.66916856]
[1739267601254,0.0011067,98102.0,98101.0,0.68416856]
[1739267602568,0.0001067,98102.0,98101.0,0.66916856]
[1739267602768,0.0011067,98102.0,98101.0,0.68016856]
[1739267603082,0.0011067,98102.0,98101.0,0.67616856]
[1739267603281,0.0001067,98102.0,98101.0,0.67316856]
[1739267603627,0.0011067,98102.0,98101.0,0.68116856]
[1739267603827,0.0011067,98102.0,98101.0,0.67716856]
[1739267604267,0.0001067,98102.0,98101.0,0.66916856]
[1739267604470,0.0011067,98102.0,98101.0,0.67716856]
[1739267604674,0.0011067,98102.0,98101.0,0.68116856]
[1739267605687,0.0001067,98102.0,98101.0,0.67316856]
[1739267605918,0.0001067,98102.0,98101.0,0.66916856]
[1739267606069,0.0011067,98102.0,98101.0,0.67616856]
[1739267606279,0.0011067,98102.0,98101.0,0.68016856]
[1739267606483,0.0001067,98102.0,98101.0,0.66916856]
[1739267606891,0.0011067,98102.0,98101.0,0.68016856]
[1739267607088,0.0011067,98102.0,98101.0,0.67616856]
[1739267607288,0.0001067,98102.0,98101.0,0.67316856]
[1739267607842,0.0011067,98102.0,98101.0,0.67616856]
[1739267609187,0.0001067,98102.0,98101.0,0.66916856]
[1739267609476,0.0011067,98102.0,98101.0,0.67616856]
[1739267609609,0.0011067,98102.0,98101.0,0.68016856]
[1739267609810,0.0011067,98102.0,98101.0,0.66916856]
[1739267610042,0.0001067,98102.0,98101.0,0.67316856]
[1739267610245,0.0011067,98102.0,98101.0,0.68016856]
[1739267610444,0.0011067,98102.0,98101.0,0.67616856]
[1739267610643,0.0001067,98102.0,98101.0,0.66916856]
[1739267610840,0.0001067,98102.0,98101.0,0.67316856]
[1739267611075,0.0011067,98102.0,98101.0,0.67616856]
[1739267611500,0.0011067,98102.0,98101.0,0.68016856]
[1739267612159,0.0001067,98102.0,98101.0,0.67316856]
[1739267612575,0.0011067,98102.0,98101.0,0.68016856]
[1739267612783,0.0011067,98102.0,98101.0,0.67616856]
[1739267612998,0.0001067,98102.0,98101.0,0.67316856]
[1739267613213,0.0001067,98102.0,98101.0,0.66916856]
[1739267613428,0.0011067,98102.0,98101.0,0.67616856]
[1739267613629,0.0011067,98102.0,98101.0,0.68016856]
[1739267613842,0.0001067,98102.0,98101.0,0.67316856]
[1739267614019,0.0011067,98102.0,98101.0,0.68016856]
[1739267614309,0.0011067,98102.0,98101.0,0.67616856]
[1739267614715,0.0011067,98102.0,98101.0,0.68016856]
[1739267615281,0.0001067,98102.0,98101.0,0.67316856]
[1739267615915,0.0001067,98102.0,98101.0,0.66916856]
[1739267616116,0.0011067,98102.0,98101.0,0.68016856]
[1739267616288,0.0011067,98102.0,98101.0,0.67616856]
[1739267616864,0.0001067,98102.0,98101.0,0.67316856]
[1739267617100,0.0011067,98102.0,98101.0,0.68016856]
[1739267617388,0.0011067,98102.0,98101.0,0.68416856]
[1739267617611,0.0011067,98102.0,98101.0,0.68016856]
[1739267617773,0.0011067,98102.0,98101.0,0.68416856]
[1739267618594,0.0001067,98102.0,98101.0,0.67716856]
[1739267618844,0.0011067,98102.0,98101.0,0.68416856]
[1739267619057,0.0011067,98102.0,98101.0,0.67616856]
[1739267619408,0.0011067,98102.0,98101.0,0.65716856]
[1739267619611,0.0011067,98102.0,98101.0,0.65316856]
[1739267619816,0.0011067,98102.0,98101.0,0.65716856]
[1739267622528,0.0011067,98102.0,98101.0,0.70016856]
[1739267622750,0.0011067,98102.0,98101.0,1.02176856]
[1739267623662,0.0812,98148.0,98121.0,0.0803]
[1739267623843,0.0812,98148.0,98139.0,0.152843]
[1739267624284,0.0812,98148.0,98122.0,0.11970291]
[1739267624285,0.0812,98148.0,98147.0,0.152831]
[1739267624487,0.0492,98150.0,98147.0,0.152831]
[1739267624687,0.01006999,98148.0,98145.0,0.152835]
[1739267624862,0.015,98148.0,98145.0,0.152835]
[1739267625088,0.015,98148.0,98146.0,0.01249419]
[1739267625295,0.0492,98150.0,98147.0,0.152831]
[1739267625501,0.007,98148.0,98146.0,0.01249419]
[1739267625680,0.007,98148.0,98147.0,0.001]
[1739267626041,0.011,98148.0,98147.0,0.001]
[1739267626247,0.004,98148.0,98147.0,0.03701162]
[1739267626667,0.008,98148.0,98147.0,0.03701162]
[1739267627009,0.004,98148.0,98147.0,0.03701162]
[1739267627291,0.008,98148.0,98147.0,0.03701162]
[1739267628072,0.009,98148.0,98147.0,0.03701162]
[1739267628237,0.009,98148.0,98145.0,0.152833]
[1739267628433,0.008,98148.0,98139.0,0.02024668]
[1739267628646,0.008,98148.0,98144.0,0.152835]
[1739267628857,0.01,98148.0,98141.0,0.203788]
[1739267629057,0.002,98148.0,98147.0,0.152831]
[1739267629302,0.003,98148.0,98147.0,0.0356619]
[1739267629682,0.004,98148.0,98147.0,0.0356619]
[1739267629878,0.007,98148.0,98147.0,0.0356619]
[1739267630086,0.001,98148.0,98147.0,0.0356619]
[1739267630629,0.004,98148.0,98147.0,0.0356619]
[1739267630801,0.004,98148.0,98147.0,0.1884929]
[1739267631443,0.0031066,98148.0,98147.0,0.1884929]
[1739267631825,0.0051066,98148.0,98147.0,0.1884929]
[1739267632033,0.0051066,98148.0,98147.0,0.0356619]
[1739267633776,0.0021066,98148.0,98147.0,0.0356619]
[1739267634191,0.0041066,98148.0,98147.0,0.0356619]
[1739267634299,0.0041066,98148.0,98146.0,0.152833]
[1739267634507,0.0021066,98148.0,98146.0,0.152833]
[1739267634715,0.0041066,98148.0,98147.0,0.152831]
[1739267634962,0.0041066,98148.0,98146.0,0.152833]
[1739267635192,0.0041066,98148.0,98147.0,0.1884921]
[1739267635421,0.0001066,98148.0,98147.0,0.1884921]
[1739267635620,0.0011066,98148.0,98147.0,0.0356611]
[1739267635739,0.0031066,98148.0,98146.0,0.152833]
[1739267636142,0.0021066,98148.0,98139.0,0.02024668]
[1739267636471,0.0011066,98148.0,98146.0,0.152833]
[1739267636824,0.0031066,98148.0,98146.0,0.152833]
[1739267636984,0.0031066,98148.0,98147.0,0.0560403]
[1739267637187,0.0031066,98148.0,98146.0,0.152833]
[1739267637412,0.0051066,98148.0,98146.0,0.152833]
[1739267637608,0.0041066,98148.0,98143.0,0.203782]
[1739267637788,0.0041066,98148.0,98146.0,0.152833]
[1739267637990,0.0051066,98148.0,98139.0,0.02024668]
[1739267638170,0.0051066,98148.0,98147.0,0.152831]
[1739267638371,0.0041066,98148.0,98146.0,0.152832]
[1739267638583,0.0011066,98148.0,98144.0,0.20378]
[1739267638789,0.0031066,98148.0,98146.0,0.152832]
[1739267639002,0.0031066,98148.0,98147.0,0.152831]
[1739267639206,0.0001066,98148.0,98147.0,0.21111138]
[1739267639487,0.0031066,98148.0,98147.0,0.21111138]
[1739267640068,0.0051066,98148.0,98147.0,0.21111138]
[1739267640463,0.0031066,98148.0,98147.0,0.21111138]
[1739267640847,0.0021066,98148.0,98147.0,0.21111138]
[1739267641192,0.0031066,98148.0,98147.0,0.21111138]
[1739267641581,0.0021066,98148.0,98147.0,0.39131503]
[1739267642018,0.0021066,98148.0,98147.0,0.39231503]
[1739267642239,0.0041066,98148.0,98147.0,0.39231503]
[1739267642496,0.0001066,98148.0,98147.0,0.39231503]
[1739267642810,0.0021066,98148.0,98147.0,0.39231503]
[1739267643629,0.0001066,98148.0,98147.0,0.39231503]
[1739267643842,0.0001066,98148.0,98147.0,0.39131503]
[1739267644257,0.0011066,98148.0,98147.0,0.39931503]
[1739267644891,0.0011066,98148.0,98147.0,0.40031503]
[1739267645101,0.0011066,98148.0,98147.0,0.39931503]
[1739267645508,0.0001066,98148.0,98147.0,0.39631503]
[1739267646423,0.0011066,98148.0,98147.0,0.41131503]
[1739267647709,0.0011066,98148.0,98147.0,0.45681503]
[1739267648476,0.0001066,98148.0,98147.0,0.60181503]
[1739267648723,0.0011066,98148.0,98147.0,0.61681503]
[1739267649331,0.0001066,98148.0,98147.0,0.59681503]
[1739267649534,0.0011066,98148.0,98147.0,0.61581503]
[1739267649984,0.0011066,98148.0,98147.0,0.61181503]
[1739267650282,0.0011066,98148.0,98147.0,0.61681503]
[1739267650437,0.0011066,98148.0,98147.0,0.61181503]
[1739267650866,0.0021066,98148.0,98147.0,0.61781503]
[1739267651066,0.0011066,98148.0,98147.0,0.60281503]
[1739267651476,0.0021066,98148.0,98147.0,0.61781503]
[1739267651827,0.0011066,98148.0,98147.0,0.60281503]
[1739267652255,0.0021066,98148.0,98147.0,0.61781503]
[1739267652454,0.0021066,98148.0,98147.0,0.93941503]
[1739267659239,0.0021066,98148.0,98147.0,0.92941503]
[1739267664871,0.0021066,98148.0,98147.0,0.88391503]
[1739267667680,0.0021066,98148.0,98147.0,0.80621503]
[1739267676135,0.0021066,98148.0,98147.0,0.48461503]
[1739267681969,0.01090985,98168.0,98147.0,0.33178403]
[1739267682180,0.01090985,98168.0,98167.0,0.1528]
[1739267682339,0.01034957,98172.0,98165.0,0.203737]
[1739267682540,0.01034957,98172.0,98170.0,0.152796]
[1739267683936,0.0488,98175.0,98170.0,0.152796]
[1739267684136,0.0011066,98171.0,98170.0,0.155796]
[1739267684815,0.01061408,98171.0,98170.0,0.155796]
[1739267685019,0.01061408,98171.0,98170.0,0.152796]
[1739267685222,0.00961408,98171.0,98157.0,0.203753]
[1739267685437,0.00961408,98171.0,98170.0,0.17360999]
[1739267685671,0.01061408,98171.0,98170.0,0.17360999]
[1739267686026,0.01061408,98171.0,98170.0,0.02081399]
[1739267686237,0.00961408,98171.0,98170.0,0.02081399]
[1739267686439,0.00961408,98171.0,98170.0,0.17460999]
[1739267686637,0.01061408,98171.0,98170.0,0.17460999]
[1739267686837,0.00961408,98171.0,98170.0,0.17360999]
[1739267687055,0.01061408,98171.0,98170.0,0.17360999]
[1739267687280,0.01261408,98171.0,98170.0,0.17360999]
[1739267687665,0.01161408,98171.0,98170.0,0.17360999]
[1739267687855,0.01161408,98171.0,98170.0,0.17460999]
[1739267689071,0.00961408,98171.0,98170.0,0.17460999]
[1739267689280,0.01061408,98171.0,98170.0,0.17460999]
[1739267689845,0.01261408,98171.0,98170.0,0.17460999]
[1739267690050,0.01261408,98171.0,98170.0,0.17260738]
[1739267690274,0.01361408,98171.0,98170.0,0.17260738]
[1739267690660,0.01061408,98171.0,98170.0,0.17136663]
[1739267690866,0.01161408,98171.0,98170.0,0.17136663]
[1739267691087,0.01161408,98171.0,98170.0,0.22925009]
[1739267691289,0.01261408,98171.0,98170.0,0.22825907]
[1739267692398,0.01261408,98171.0,98170.0,0.22560441]
[1739267695217,0.03163796,98171.0,98170.0,0.22560441]
[1739267695563,0.03163796,98171.0,98170.0,0.16772095]
[1739267698426,0.03063796,98171.0,98170.0,0.16772095]
[1739267698750,0.03163796,98171.0,98170.0,0.16772095]
[1739267699170,0.02963796,98171.0,98170.0,0.16772095]
[1739267699728,0.03163796,98171.0,98170.0,0.16772095]
[1739267699922,0.03063796,98171.0,98170.0,0.16772095]
[1739267700169,0.02963796,98171.0,98170.0,0.16772095]
[1739267700611,0.03163796,98171.0,98170.0,0.16772095]
[1739267701107,0.03163796,98171.0,98170.0,0.24563583]
[1739267701654,0.03063796,98171.0,98170.0,0.24563583]
[1739267702277,0.03063796,98171.0,98170.0,0.16772095]
[1739267702881,0.02863796,98171.0,98170.0,0.16772095]
[1739267703094,0.02963796,98171.0,98170.0,0.16872095]
[1739267703528,0.02963796,98171.0,98170.0,0.16772095]
[1739267704065,0.02863796,98171.0,98170.0,0.16772095]
[1739267704221,0.02963796,98171.0,98170.0,0.16772095]
[1739267704437,0.02963796,98171.0,98170.0,0.16972095]
[1739267705995,0.02963796,98171.0,98170.0,0.01692495]
[1739267707227,0.04485808,98171.0,98170.0,0.01692495]
[1739267707430,0.07529832,98171.0,98170.0,0.01692495]
[1739267708825,0.04485808,98171.0,98170.0,0.01692495]
[1739267709261,0.04485808,98171.0,98170.0,0.19180913]
[1739267711178,0.04485808,98171.0,98170.0,0.16972095]
[1739267711366,0.04485808,98171.0,98170.0,0.16994481]
[1739267712148,0.02963796,98171.0,98170.0,0.16994481]
[1739267714213,0.02963796,98171.0,98170.0,0.01714881]
[1739267715589,0.02963796,98171.0,98170.0,0.16994481]
[1739267716395,0.02963796,98171.0,98170.0,0.01714881]
[1739267718500,0.18243196,98171.0,98170.0,0.01714881]
[1739267718848,0.19764519,98171.0,98170.0,0.01714881]
[1739267719260,0.04485119,98171.0,98170.0,0.01714881]
[1739267719691,0.19764519,98171.0,98170.0,0.01714881]
[1739267720611,0.34534884,98171.0,98170.0,0.00222386]
[1739267721439,0.34534884,98171.0,98170.0,0.00022386]
[1739267721762,0.35234884,98171.0,98170.0,0.00122386]
[1739267721974,0.35134884,98171.0,98170.0,0.00122386]
[1739267722182,0.34013561,98171.0,98170.0,0.00122386]
[1739267722418,0.32913561,98171.0,98170.0,0.00022386]
[1739267722615,0.33175654,98171.0,98170.0,0.00122386]
[1739267722829,0.33440449,98171.0,98170.0,0.00122386]
[1739267723661,0.3294218,98171.0,98170.0,0.00122386]
[1739267734756,0.3295284,98171.0,98170.0,0.00122386]
[1739267740048,0.152797,98169.0,98168.0,2.122e-05]
[1739267740249,0.25530065,98169.0,98168.0,2.122e-05]
[1739267741228,0.30360055,98169.0,98168.0,2.122e-05]
[1739267741403,0.30860055,98169.0,98168.0,2.122e-05]
[1739267741983,0.31260055,98169.0,98168.0,2.122e-05]
[1739267742682,0.30700532,98169.0,98168.0,2.122e-05]
[1739267744650,0.05170467,98169.0,98168.0,2.122e-05]
[1739267744855,0.05170467,98169.0,98168.0,0.15282022]
[1739267745077,0.05170467,98169.0,98168.0,0.18847604]
[1739267745347,0.05170467,98169.0,98168.0,2.122e-05]
[1739267745559,0.08209426,98169.0,98168.0,2.122e-05]
[1739267745755,0.07809426,98169.0,98168.0,2.122e-05]
[1739267746365,0.07609426,98169.0,98168.0,2.122e-05]
[1739267746732,0.08109426,98169.0,98168.0,2.122e-05]
[1739267747136,0.04570467,98169.0,98168.0,2.122e-05]
[1739267747559,0.05070467,98169.0,98168.0,2.122e-05]
[1739267750664,0.03551647,98169.0,98168.0,2.122e-05]
[1739267751278,0.18831347,98169.0,98168.0,2.122e-05]
[1739267751486,0.03551647,98169.0,98168.0,2.122e-05]
[1739267753033,0.18831347,98169.0,98168.0,2.122e-05]
[1739267753587,0.2035239,98169.0,98168.0,2.122e-05]
[1739267755045,0.30602755,98169.0,98168.0,2.122e-05]
[1739267755757,0.152812,98160.0,98156.0,0.02079605]
[1739267755932,0.152812,98160.0,98156.0,0.07492168]
[1739267756139,0.203738,98165.0,98156.0,0.07492168]
[1739267756314,0.203738,98165.0,98156.0,0.02079605]
[1739267756498,0.01792415,98159.0,98156.0,0.02079605]
[1739267756705,0.17073815,98159.0,98156.0,0.02079605]
[1739267756918,0.01792415,98159.0,98156.0,0.02279605]
[1739267757369,0.01792415,98159.0,98156.0,0.02079605]
[1739267757625,0.0247021,98158.0,98156.0,0.06678426]
[1739267757739,0.0247021,98158.0,98156.0,0.06978426]
[1739267758734,0.01792415,98157.0,98156.0,0.06978426]
[1739267758940,0.01792415,98157.0,98156.0,0.06678426]
[1739267759094,0.04262625,98157.0,98156.0,0.06678426]
[1739267759335,0.04262625,98157.0,98156.0,0.06978426]